[Event "European Women Rapid-ch 2023"]
[Site "Monaco"]
[Date "2024.01.13"]
[Round "2.11"]
[White "Krasteva, Beloslava"]
[Black "Batsiashvili, Nino"]
[Result "0-1"]
[ECO "D35"]
[WhiteElo "2251"]
[BlackElo "2451"]
[Annotator "RC"]
[PlyCount "128"]
[EventDate "2023.12.19"]
[EventType "swiss"]
[EventCountry "MNC"]
[SourceTitle "playchess.com"]
[Source "ChessBase"]
[SourceQuality "1"]
[TimeControl "900+10"]

1. d4 {[%emt 0:00:03]} Nf6 {[%emt 0:00:18]} 2. c4 {[%emt 0:00:02]} e6 {[%emt 0:00:12]} 3. Nc3 {[%emt 0:00:04]} d5 {[%emt 0:00:02]} 4. cxd5 {[%emt 0:00:05]} exd5 {[%emt 0:00:02]} 5. Bg5 {[%emt 0:00:04]} c6 {[%emt 0:00:02]} 6. e3 {[%emt 0:00:04]} h6 {[%emt 0:00:09]} 7. Bh4 {[%emt 0:00:03]} Be7 {[%emt 0:00:06]} 8. Bd3 {[%emt 0:00:04]} O-O {[%emt 0:00:07]} 9. Nge2 {[%emt 0:00:26]} Ne8 {[%emt 0:00:07]} 10. Bg3 {[%emt 0:00:41]} Nd6 {[%emt 0:00:24]} 11. Qc2 {[%emt 0:00:39]} a5 {[%emt 0:00:29]} 12. O-O {[%emt 0:00:43]} Na6 {[%emt 0:00:02]} 13. a3 {[%emt 0:00:05]} Nc7 {[%emt 0:03:14]} 14. Nf4 {[%emt 0:01:47]} Bh4 {[%emt 0:00:57]} 15. Nh5 {[%emt 0:01:11]} Bxg3 {[%emt 0:00:08]} 16. Nxg3 {[%emt 0:00:10]} Re8 {[%emt 0:00:46]} 17. Rfe1 {[%emt 0:00:25]} Ne6 {[%emt 0:00:32]} 18. Rad1 {[%emt 0:00:21]} Bd7 {[%emt 0:00:25]} 19. f3 {[%emt 0:00:37]} Qg5 {[%emt 0:00:48]} 20. Qf2 {[%emt 0:00:23]} h5 {[%emt 0:00:28]} 21. f4 {[%emt 0:04:34]} Qh6 {[%emt 0:00:22]} 22. h4 {[%emt 0:00:19]} Nf8 {[%emt 0:00:12]} 23. f5 {[%emt 0:02:00]} Nh7 {[%emt 0:00:13]} 24. e4 {[%emt 0:00:30]} dxe4 {[%emt 0:00:01]} 25. Ncxe4 {[%emt 0:00:06]} Nxe4 {[%emt 0:00:07]} 26. Nxe4 {[%emt 0:00:06]} Nf6 {[%emt 0:00:31]} 27. Ng5 {[%emt 0:00:34]} Ng4 {[%emt 0:00:16]} 28. Qf4 {[%emt 0:00:10]} Qf6 {[%emt 0:00:15]} 29. Bc4 {[%emt 0:00:59]} Nh6 {[%emt 0:00:14]} 30. Re5 {[%emt 0:00:19]} Rxe5 {[%emt 0:00:39]} 31. dxe5 {[%emt 0:00:21]} Qxf5 {[%emt 0:00:02]} 32. Qxf5 {[%emt 0:00:23]} Bxf5 {[%emt 0:00:01]} 33. Nxf7 {[%emt 0:00:44]} Nxf7 {[%emt 0:00:08]} 34. e6 {[%emt 0:00:01]} Bxe6 {[%emt 0:00:45]} 35. Bxe6 {[%emt 0:00:01]} Re8 {[%emt 0:00:08]} 36. Bb3 {[%emt 0:00:11]} Re7 {[%emt 0:01:03]} 37. Rd8+ {[%emt 0:00:50]} Kh7 {[%emt 0:00:01]} 38. Ra8 {[%emt 0:00:01]} Ne5 {[%emt 0:00:45]} 39. Rxa5 {[%emt 0:00:14]} g6 {[%emt 0:00:00]} 40. Bc2 {[%emt 0:00:40]} Ng4 {[%emt 0:00:07]} 41. Bd3 {[%emt 0:00:38]} Re1+ {[%emt 0:00:11]} 42. Bf1 {[%emt 0:00:01]} Rb1 {[%emt 0:00:27]} 43. Ra4 {[%emt 0:00:26]} Rxb2 {[%emt 0:00:23]} 44. Rb4 {[%emt 0:00:02]} Rxb4 {[%emt 0:00:13]} 45. axb4 {[%emt 0:00:01]} Kg7 {[%emt 0:00:01]} 46. b5 {[%emt 0:00:12]} Kf6 {[%emt 0:00:21]} 47. bxc6 {[%emt 0:00:16]} bxc6 {[%emt 0:00:01]} 48. Bd3 {[%emt 0:00:08]} c5 {[%emt 0:00:09]} 49. Kf1 {[%emt 0:00:12]} c4 {[%emt 0:00:45]} 50. Bb1 {[%emt 0:00:01]} Ne3+ {[%emt 0:00:13]} 51. Kf2 {[%emt 0:00:03]} Nf5 {[%emt 0:00:01]} 52. g3 {[%emt 0:00:08]} Ke5 {[%emt 0:00:01]} 53. Kf3 {[%emt 0:00:22]} c3 {[%emt 0:00:04]} 54. Kf2 {[%emt 0:00:22]} Kf6 {[%emt 0:00:52]} 55. Bd3 {[%emt 0:00:06]} Ke5 {[%emt 0:00:24]} 56. Bb1 {[%emt 0:00:01]} Kd5 {[%emt 0:00:04]} 57. g4 {[%emt 0:00:20]} hxg4 {[%emt 0:01:20]} 58. h5 {[%emt 0:00:01]} gxh5 {[%emt 0:00:01]} 59. Bxf5 {[%emt 0:00:01]} Ke5 60. Bc2 {[%emt 0:00:29]} h4 {[%emt 0:00:45]} 61. Ke3 {[%emt 0:00:07]} h3 {[%emt 0:00:05]} 62. Be4 {[%emt 0:00:15]} g3 {[%emt 0:00:02]} 63. Bf3 {[%emt 0:00:14]} g2 {[%emt 0:00:07]} 64. Kf2 {[%emt 0:00:11]} c2 {[%emt 0:00:01]} 0-1

[Event "European Women Rapid-ch 2023"]
[Site "Monaco"]
[Date "2024.01.13"]
[Round "2.12"]
[White "Vega Gutierrez, Sabrina"]
[Black "Sliwicka, Alicja"]
[Result "1-0"]
[ECO "B20"]
[WhiteElo "2378"]
[BlackElo "2311"]
[Annotator "RC"]
[PlyCount "83"]
[EventDate "2023.12.19"]
[EventType "swiss"]
[EventCountry "MNC"]
[SourceTitle "playchess.com"]
[Source "ChessBase"]
[SourceQuality "1"]
[TimeControl "900+10"]

1. e4 {[%emt 0:00:01]} c5 {[%emt 0:00:02]} 2. b3 {[%emt 0:00:02]} e6 {[%emt 0:00:07]} 3. Bb2 {[%emt 0:00:06]} Nf6 {[%emt 0:00:19]} 4. e5 {[%emt 0:00:04]} Nd5 {[%emt 0:00:03]} 5. Nc3 {[%emt 0:00:07]} d6 {[%emt 0:00:16]} 6. exd6 {[%emt 0:00:57]} Qxd6 {[%emt 0:00:19]} 7. Ne4 {[%emt 0:00:15]} Qc7 {[%emt 0:00:27]} 8. Nf3 {[%emt 0:00:09]} Nc6 {[%emt 0:00:27]} 9. g3 {[%emt 0:02:04]} f5 {[%emt 0:00:24]} 10. Nc3 {[%emt 0:00:14]} Nxc3 {[%emt 0:00:30]} 11. dxc3 {[%emt 0:00:28]} Bd6 {[%emt 0:00:28]} 12. Bc4 {[%emt 0:00:23]} O-O {[%emt 0:00:46]} 13. Qe2 {[%emt 0:00:07]} Kh8 {[%emt 0:00:46]} 14. O-O-O {[%emt 0:00:06]} Qe7 {[%emt 0:01:43]} 15. h4 {[%emt 0:00:35]} Na5 {[%emt 0:00:40]} 16. Rhe1 {[%emt 0:01:34]} Nxc4 {[%emt 0:00:41]} 17. Qxc4 {[%emt 0:00:05]} b6 {[%emt 0:01:59]} 18. Ng5 {[%emt 0:01:32]} Rf6 {[%emt 0:01:03]} 19. Qd3 {[%emt 0:01:22]} e5 {[%emt 0:00:24]} 20. c4 {[%emt 0:02:16]} Bb7 {[%emt 0:04:39]} 21. f4 {[%emt 0:00:36]} Bc7 {[%emt 0:00:46]} 22. fxe5 {[%emt 0:03:22]} Rff8 {[%emt 0:00:03]} 23. e6 {[%emt 0:00:07]} Kg8 {[%emt 0:00:31]} 24. Qc3 {[%emt 0:00:16]} Rad8 {[%emt 0:00:11]} 25. Nf7 {[%emt 0:00:30]} Rxd1+ {[%emt 0:00:34]} 26. Rxd1 {[%emt 0:00:01]} Rxf7 {[%emt 0:00:06]} 27. exf7+ {[%emt 0:00:07]} Qxf7 {[%emt 0:00:02]} 28. Kb1 {[%emt 0:00:18]} Be4 {[%emt 0:00:07]} 29. Qe3 {[%emt 0:00:08]} Qe7 {[%emt 0:00:13]} 30. Re1 {[%emt 0:00:27]} Qd8 {[%emt 0:00:12]} 31. g4 {[%emt 0:00:15]} Kf7 {[%emt 0:01:04]} 32. gxf5 {[%emt 0:00:11]} Bxf5 {[%emt 0:00:02]} 33. h5 {[%emt 0:00:11]} Qd7 {[%emt 0:00:21]} 34. Qg5 {[%emt 0:00:17]} Kg8 {[%emt 0:00:18]} 35. h6 {[%emt 0:00:30]} Bg6 {[%emt 0:00:11]} 36. hxg7 {[%emt 0:00:29]} Bd8 {[%emt 0:00:01]} 37. Qf4 {[%emt 0:00:09]} Be7 {[%emt 0:00:08]} 38. Qb8+ {[%emt 0:00:27]} Qd8 {[%emt 0:00:01]} 39. Qe5 {[%emt 0:00:04]} Bg5 {[%emt 0:00:14]} 40. Rf1 {[%emt 0:00:14]} Bxc2+ {[%emt 0:00:10]} 41. Ka1 {[%emt 0:00:13]} Qe7 {[%emt 0:00:18]} 42. Qb8+ {[%emt 0:00:09]} 1-0

[Event "European Women Rapid-ch 2023"]
[Site "Monaco"]
[Date "2024.01.13"]
[Round "2.13"]
[White "Reizniece-Ozola, Dana"]
[Black "Zimina, Olga"]
[Result "0-1"]
[ECO "A11"]
[WhiteElo "2278"]
[BlackElo "2291"]
[Annotator "RC"]
[PlyCount "74"]
[EventDate "2023.12.19"]
[EventType "swiss"]
[EventCountry "MNC"]
[SourceTitle "playchess.com"]
[Source "ChessBase"]
[SourceQuality "1"]
[TimeControl "900+10"]

1. c4 {[%emt 0:00:01]} c6 {[%emt 0:00:03]} 2. Nf3 {[%emt 0:00:09]} d5 {[%emt 0:00:02]} 3. e3 {[%emt 0:00:05]} Nf6 {[%emt 0:00:02]} 4. Nc3 {[%emt 0:00:02]} a6 {[%emt 0:00:04]} 5. a4 {[%emt 0:00:27]} e6 {[%emt 0:00:28]} 6. a5 {[%emt 0:00:30]} Bd6 {[%emt 0:00:52]} 7. h3 {[%emt 0:01:52]} e5 {[%emt 0:01:08]} 8. Qb3 {[%emt 0:01:49]} Bc7 {[%emt 0:00:06]} 9. d4 {[%emt 0:03:11]} e4 {[%emt 0:00:12]} 10. Ne5 {[%emt 0:00:13]} O-O {[%emt 0:00:10]} 11. Bd2 {[%emt 0:00:40]} Re8 {[%emt 0:02:04]} 12. Be2 {[%emt 0:00:41]} Nbd7 {[%emt 0:03:23]} 13. Nxd7 {[%emt 0:00:17]} Qxd7 {[%emt 0:00:11]} 14. Qc2 {[%emt 0:02:17]} Qd8 {[%emt 0:01:02]} 15. b4 {[%emt 0:00:25]} Be6 {[%emt 0:01:02]} 16. cxd5 {[%emt 0:00:23]} Bxd5 {[%emt 0:00:10]} 17. Na4 {[%emt 0:00:14]} Qd6 {[%emt 0:00:18]} 18. Nc5 {[%emt 0:00:05]} Rab8 {[%emt 0:00:01]} 19. g4 {[%emt 0:00:53]} Nd7 {[%emt 0:00:11]} 20. h4 {[%emt 0:00:13]} Nf8 {[%emt 0:00:06]} 21. g5 {[%emt 0:00:19]} Qe7 {[%emt 0:00:26]} 22. O-O-O {[%emt 0:00:20]} Bd6 {[%emt 0:00:15]} 23. Rdg1 {[%emt 0:00:07]} b6 {[%emt 0:00:40]} 24. Nxa6 {[%emt 0:00:12]} Rb7 {[%emt 0:00:02]} 25. axb6 {[%emt 0:02:02]} Rxb6 {[%emt 0:00:02]} 26. Nc5 {[%emt 0:00:01]} Ra8 {[%emt 0:00:05]} 27. Bc4 {[%emt 0:00:04]} Bxc5 {[%emt 0:02:49]} 28. dxc5 {[%emt 0:00:29]} Qxc5 {[%emt 0:00:14]} 29. Bxd5 {[%emt 0:00:21]} Qxd5 {[%emt 0:00:19]} 30. Kb1 {[%emt 0:01:31]} c5 {[%emt 0:00:53]} 31. Bc3 {[%emt 0:00:01]} cxb4 {[%emt 0:00:15]} 32. Ba1 {[%emt 0:00:05]} Rba6 {[%emt 0:00:24]} 33. Bd4 {[%emt 0:00:13]} b3 {[%emt 0:00:25]} 34. Qe2 {[%emt 0:00:11]} Ra2 {[%emt 0:00:07]} 35. Bb2 {[%emt 0:00:03]} Qa5 {[%emt 0:00:09]} 36. Kc1 {[%emt 0:00:26]} Ra1+ {[%emt 0:00:04]} 37. Bxa1 {[%emt 0:00:15]} Qxa1+ {[%emt 0:00:02]} 0-1

[Event "European Women Rapid-ch 2023"]
[Site "Monaco"]
[Date "2024.01.13"]
[Round "2.14"]
[White "Daulyte-Cornette, Deimante"]
[Black "Radeva, Viktoria"]
[Result "0-1"]
[ECO "C13"]
[WhiteElo "2372"]
[BlackElo "2325"]
[Annotator "RC"]
[PlyCount "54"]
[EventDate "2023.12.19"]
[EventType "swiss"]
[EventCountry "MNC"]
[SourceTitle "playchess.com"]
[Source "ChessBase"]
[SourceQuality "1"]
[TimeControl "900+10"]

1. e4 {[%emt 0:00:02]} e6 {[%emt 0:00:01]} 2. d4 {[%emt 0:00:03]} d5 {[%emt 0:00:02]} 3. Nc3 {[%emt 0:00:04]} Nf6 {[%emt 0:00:04]} 4. Bg5 {[%emt 0:00:04]} dxe4 {[%emt 0:00:04]} 5. Nxe4 {[%emt 0:00:07]} Be7 {[%emt 0:00:02]} 6. Nxf6+ {[%emt 0:00:25]} Bxf6 {[%emt 0:00:03]} 7. Bxf6 {[%emt 0:00:04]} Qxf6 {[%emt 0:00:02]} 8. Nf3 {[%emt 0:00:14]} O-O {[%emt 0:00:17]} 9. Qd3 {[%emt 0:00:35]} Bd7 {[%emt 0:01:16]} 10. O-O-O {[%emt 0:02:01]} Bc6 {[%emt 0:00:02]} 11. Be2 {[%emt 0:00:33]} Nd7 {[%emt 0:00:25]} 12. h4 {[%emt 0:00:15]} Qh6+ {[%emt 0:02:20]} 13. Kb1 {[%emt 0:00:10]} Nf6 {[%emt 0:00:20]} 14. Rh3 {[%emt 0:02:17]} Be4 {[%emt 0:00:23]} 15. Qb3 {[%emt 0:02:34]} Bf5 {[%emt 0:01:33]} 16. Rhh1 {[%emt 0:00:54]} Ne4 {[%emt 0:01:29]} 17. Rhf1 {[%emt 0:00:20]} a5 {[%emt 0:01:19]} 18. Bd3 {[%emt 0:01:29]} a4 {[%emt 0:00:33]} 19. Qxb7 {[%emt 0:01:07]} Nc3+ {[%emt 0:00:10]} 20. Ka1 {[%emt 0:00:09]} Nxd1 {[%emt 0:00:04]} 21. Rxd1 {[%emt 0:00:20]} Bxd3 {[%emt 0:00:07]} 22. cxd3 {[%emt 0:00:01]} Rfb8 {[%emt 0:02:38]} 23. Qc6 {[%emt 0:00:19]} Ra7 {[%emt 0:01:28]} 24. Ne5 {[%emt 0:00:41]} Qf4 {[%emt 0:00:22]} 25. Nd7 {[%emt 0:03:02]} Rd8 {[%emt 0:00:13]} 26. Qc5 {[%emt 0:00:17]} Raa8 {[%emt 0:00:32]} 27. g3 {[%emt 0:00:46]} Qf3 {[%emt 0:00:31]} 0-1

[Event "European Women Rapid-ch 2023"]
[Site "Monaco"]
[Date "2024.01.13"]
[Round "2.15"]
[White "Kubicka, Anna"]
[Black "Osmak, Yuliia"]
[Result "0-1"]
[ECO "C70"]
[WhiteElo "2278"]
[BlackElo "2450"]
[Annotator "TA"]
[PlyCount "72"]
[EventDate "2023.12.19"]
[EventType "swiss"]
[EventCountry "MNC"]
[SourceTitle "playchess.com"]
[Source "ChessBase"]
[SourceQuality "1"]
[TimeControl "900+10"]

{[%evp 12,72,35,45,50,29,33,-2,18,19,48,40,57,52,30,33,61,33,38,27,31,-14,-3,-20,-2,-286,-288,-300,-270,-273,-276,-312,-306,-285,-280,-342,-339,-317,-314,-340,-339,-356,-328,-339,-350,-340,-331,-335,-324,-337,-301,-295,-274,-333,-275,-352,-364,-453,-453,-1703,-1511,-29957,-29960]} 1. e4 {[%emt 0:00:03]} e5 {[%emt 0:00:01]} 2. Nf3 {[%emt 0:00:01]} Nc6 {[%emt 0:00:00]} 3. Bb5 {[%emt 0:00:02][%cal Bf1b5,Bb5a4,Ba4b3][%mdl 32]} a6 {[%emt 0:00:02]} 4. Ba4 {[%emt 0:00:01]} b5 {[%emt 0:00:04]} 5. Bb3 {[%emt 0:00:02]} Na5 {[%emt 0:00:01]} 6. O-O {[%emt 0:00:33]} d6 {[%emt 0:00:04]} 7. d4 {[%emt 0:01:31]} exd4 {[%emt 0:00:04]} 8. Qxd4 {[%emt 0:01:19][%cal Ob3f7] [#] aiming for Bxf7+!} Bb7 {[%emt 0:01:10]} 9. c4 {[%emt 0:00:44]} c5 {[%emt 0:01:15] The position is equal.} 10. Qd3 {[%emt 0:00:51]} Nxb3 {[%emt 0:01:50]} 11. Qxb3 {[%emt 0:02:15]} Nf6 {[%emt 0:01:57]} 12. Nc3 {[%emt 0:03:10]} Be7 {[%emt 0:00:04]} 13. cxb5 {[%emt 0:00:41]} O-O {[%emt 0:00:28]} 14. bxa6 {[%emt 0:00:04]} Bxe4 {[%emt 0:02:02]} 15. Nxe4 {[%emt 0:00:04]} Nxe4 {[%emt 0:00:00]} 16. Qd3 {[%emt 0:00:52]} (16. Qb7 {is interesting.} f5 17. Rd1 Bf6 18. Nd2) 16... d5 {[%emt 0:00:53]} 17. Rd1 {[%emt 0:00:39]} Qb6 {[%emt 0:00:14]} 18. b3 $2 {[%emt 0:02:18][%mdl 8192] This move loses the game for White.} (18. Qxd5 $2 Rad8 $19) (18. Qb3 $11 Qxa6 19. Rxd5 (19. Qxd5 Rfd8 $11)) 18... Bf6 $19 {[%emt 0:00:37]} (18... Rxa6 19. Be3 $15 (19. Qxd5 $2 Rd8 $19)) 19. Be3 {[%emt 0:01:07]} Bxa1 {[%emt 0:00:16]} (19... Qxa6 20. Qxd5 Nc3 (20... Bxa1 $2 21. Rxa1 Qf6 22. Re1 $17) 21. Qxc5 Nxd1 22. Rxd1 Qxa2 23. Nd4 $19) (19... Rxa6 20. Rac1 $11) 20. Rxa1 {[%emt 0:00:02]} Rfd8 {[%emt 0:00:14][%cal Ob6f6]} ({Don't play} 20... Qxa6 21. Qxd5 Qf6 22. Re1 $19) 21. h4 {[%emt 0:00:45]} Qxa6 {[%emt 0:00:06]} 22. Qc2 {[%emt 0:00:04]} h6 {[%emt 0:01:18]} 23. Bxc5 {[%emt 0:00:33]} Rac8 {[%emt 0:00:50]} 24. b4 {[%emt 0:00:02]} Nxc5 {[%emt 0:00:08]} 25. bxc5 {[%emt 0:00:03]} Qc4 {[%emt 0:00:03] Prevents Nd4.} 26. Qf5 {[%emt 0:00:09]} Qxc5 {[%emt 0:00:28]} 27. Ne5 {[%emt 0:00:05]} Qe7 {[%emt 0:00:16]} 28. Rd1 {[%emt 0:00:39]} Qe6 {[%emt 0:01:41]} ({Not} 28... Qxh4 29. Qxf7+ Kh7 30. Qf5+ Kg8 31. Qf7+ Kh7 32. Qg6+ Kg8 33. Qe6+ Kh7 34. Qg6+ Kg8 35. Qe6+ Kh7 36. Qg6+ $11) 29. Qf4 {[%emt 0:00:06]} Ra8 {[%emt 0:00:14]} 30. a4 {[%emt 0:00:07]} Re8 {[%emt 0:00:13]} 31. Nf3 {[%emt 0:00:21]} Qe4 {[%emt 0:00:07]} 32. Qg3 {[%emt 0:00:06]} Qf5 {[%emt 0:01:09]} ({Don't take} 32... Qxa4 33. Rxd5 Qc4 34. Rd4 Ra1+ 35. Kh2 $19) 33. Nd4 {[%emt 0:01:02]} Qh5 {[%emt 0:00:23]} 34. Ra1 {[%emt 0:00:05]} Re4 {[%emt 0:00:05][%csl LRd4,LRh4]} 35. Nc6 {[%emt 0:00:13]} (35. Nf3 $142 Rexa4 (35... Raxa4 $2 36. Qb8+ Kh7 37. Rc1 $19) 36. Rxa4 Rxa4 37. Qb8+ Kh7 38. Qb1+ Qg6 39. Qd1) 35... Rxh4 {[%emt 0:00:16][%csl Gh5][%cal Rh4h1] [#]} 36. Ne7+ {[%emt 0:00:05]} Kh8 {[%emt 0:00:17] Weighted Error Value: White=0.67/Black=0.08 (flawless) .  Loses game:     	White=1     	---        Mistake:       	White=1     	---        Inaccurate:     	White=4     	Black=1      OK:         	White=7     	Black=16     Best:        	White=1     	Black=2} 0-1

[Event "European Women Rapid-ch 2023"]
[Site "Monaco"]
[Date "2024.01.13"]
[Round "2.16"]
[White "Guichard, Pauline"]
[Black "Polterauer, Chiara"]
[Result "1-0"]
[ECO "D91"]
[WhiteElo "2385"]
[BlackElo "2189"]
[Annotator "RC"]
[PlyCount "53"]
[EventDate "2023.12.19"]
[EventType "swiss"]
[EventCountry "MNC"]
[SourceTitle "playchess.com"]
[Source "ChessBase"]
[SourceQuality "1"]
[TimeControl "900+10"]

1. d4 {[%emt 0:00:02]} Nf6 {[%emt 0:00:01]} 2. c4 {[%emt 0:00:01]} g6 {[%emt 0:00:01]} 3. Nc3 {[%emt 0:00:02]} d5 {[%emt 0:00:02]} 4. Nf3 {[%emt 0:00:02]} Bg7 {[%emt 0:00:06]} 5. Bg5 {[%emt 0:00:02]} Ne4 {[%emt 0:00:35]} 6. Bf4 {[%emt 0:00:02]} c6 {[%emt 0:00:37]} 7. e3 {[%emt 0:00:15]} O-O {[%emt 0:00:38]} 8. Qb3 {[%emt 0:00:19]} Nxc3 {[%emt 0:00:41]} 9. bxc3 {[%emt 0:00:10]} Qa5 {[%emt 0:00:48]} 10. Be2 {[%emt 0:01:25]} Nd7 {[%emt 0:00:15]} 11. cxd5 {[%emt 0:00:25]} cxd5 {[%emt 0:00:13]} 12. O-O {[%emt 0:00:02]} Nf6 {[%emt 0:01:22]} 13. c4 {[%emt 0:00:15]} Be6 {[%emt 0:00:38]} 14. c5 {[%emt 0:00:35]} Bc8 {[%emt 0:02:21]} 15. a4 {[%emt 0:01:15]} b6 {[%emt 0:01:02]} 16. Rfc1 {[%emt 0:03:10]} bxc5 {[%emt 0:01:11]} 17. Rxc5 {[%emt 0:00:03]} Qb6 {[%emt 0:00:04]} 18. Qa3 {[%emt 0:02:13]} Ba6 {[%emt 0:01:00]} 19. a5 {[%emt 0:00:30]} Qxc5 {[%emt 0:02:20]} 20. Qxc5 {[%emt 0:00:23]} Bxe2 {[%emt 0:00:01]} 21. Qxe7 {[%emt 0:00:09]} Nh5 {[%emt 0:00:53]} 22. Bd6 {[%emt 0:00:28]} Rfc8 {[%emt 0:00:08]} 23. Ne5 {[%emt 0:00:18]} Bxe5 {[%emt 0:01:14]} 24. Bxe5 {[%emt 0:00:02]} Rc2 {[%emt 0:01:25]} 25. h3 {[%emt 0:00:19]} Rac8 {[%emt 0:00:55]} 26. Qxa7 {[%emt 0:00:38]} Ng7 {[%emt 0:00:25]} 27. Qd7 {[%emt 0:00:49]} 1-0

[Event "European Women Rapid-ch 2023"]
[Site "Monaco"]
[Date "2024.01.13"]
[Round "2.17"]
[White "Exler, Veronika"]
[Black "Savina, Anastasia"]
[Result "0-1"]
[ECO "B22"]
[WhiteElo "2157"]
[BlackElo "2340"]
[Annotator "RC"]
[PlyCount "112"]
[EventDate "2023.12.19"]
[EventType "swiss"]
[EventCountry "MNC"]
[SourceTitle "playchess.com"]
[Source "ChessBase"]
[SourceQuality "1"]
[TimeControl "900+10"]

1. e4 {[%emt 0:00:01]} c5 {[%emt 0:00:23]} 2. c3 {[%emt 0:00:01]} Nf6 {[%emt 0:00:02]} 3. e5 {[%emt 0:00:01]} Nd5 {[%emt 0:00:02]} 4. d4 {[%emt 0:00:00]} cxd4 {[%emt 0:00:03]} 5. Nf3 {[%emt 0:00:01]} Nc6 {[%emt 0:00:02]} 6. cxd4 {[%emt 0:00:01]} d6 {[%emt 0:00:02]} 7. Bc4 {[%emt 0:00:02]} dxe5 {[%emt 0:00:08]} 8. dxe5 {[%emt 0:00:25]} Ndb4 {[%emt 0:00:05]} 9. Qb3 {[%emt 0:00:03]} e6 {[%emt 0:00:20]} 10. O-O {[%emt 0:00:26]} Na5 {[%emt 0:00:10]} 11. Bb5+ {[%emt 0:00:39]} Bd7 {[%emt 0:00:06]} 12. Qa4 {[%emt 0:00:10]} Bxb5 {[%emt 0:00:06]} 13. Qxb5+ {[%emt 0:00:01]} Nac6 {[%emt 0:00:20]} 14. Nc3 {[%emt 0:02:27]} a6 {[%emt 0:00:30]} 15. Qe2 {[%emt 0:00:42]} Qd3 {[%emt 0:00:17]} 16. Rd1 {[%emt 0:00:47]} Qxe2 {[%emt 0:00:35]} 17. Nxe2 {[%emt 0:00:02]} Bc5 {[%emt 0:01:12]} 18. a3 {[%emt 0:02:43]} Nd5 {[%emt 0:00:11]} 19. b4 {[%emt 0:00:11]} Be7 {[%emt 0:00:57]} 20. Bb2 {[%emt 0:00:15]} O-O-O {[%emt 0:00:34]} 21. Ned4 {[%emt 0:02:59]} Nxd4 {[%emt 0:00:17]} 22. Rxd4 {[%emt 0:00:07]} Nb6 {[%emt 0:00:33]} 23. Rc1+ {[%emt 0:01:04]} Kb8 {[%emt 0:00:03]} 24. Rxd8+ {[%emt 0:02:41]} Rxd8 {[%emt 0:00:09]} 25. Kf1 {[%emt 0:00:03]} g5 {[%emt 0:01:02]} 26. h3 {[%emt 0:00:16]} h5 {[%emt 0:00:10]} 27. g4 {[%emt 0:00:17]} hxg4 {[%emt 0:00:13]} 28. hxg4 {[%emt 0:00:01]} Rd3 {[%emt 0:01:39]} 29. Rc3 {[%emt 0:01:02]} Rxc3 {[%emt 0:03:19]} 30. Bxc3 {[%emt 0:00:01]} Nc4 {[%emt 0:00:04]} 31. a4 {[%emt 0:01:33]} Kc7 {[%emt 0:00:05]} 32. Ke2 {[%emt 0:01:07]} Nb6 {[%emt 0:02:28]} 33. Bd2 {[%emt 0:00:18]} Nxa4 {[%emt 0:02:03]} 34. Nxg5 {[%emt 0:00:01]} Bxg5 {[%emt 0:00:09]} 35. Bxg5 {[%emt 0:00:00]} Kc6 {[%emt 0:00:07]} 36. Kd3 {[%emt 0:00:21]} Kd5 {[%emt 0:00:05]} 37. f4 {[%emt 0:00:04]} Nb2+ {[%emt 0:00:09]} 38. Kc3 {[%emt 0:00:04]} Nd1+ {[%emt 0:00:10]} 39. Kb3 {[%emt 0:00:22]} Nf2 {[%emt 0:02:09]} 40. Ka4 {[%emt 0:00:01]} Kc6 {[%emt 0:00:24]} 41. f5 {[%emt 0:00:28]} Nxg4 {[%emt 0:00:03]} 42. fxe6 {[%emt 0:00:01]} fxe6 {[%emt 0:00:02]} 43. Bf4 {[%emt 0:00:10]} Nf2 {[%emt 0:00:15]} 44. Ka5 {[%emt 0:00:18]} Nd3 {[%emt 0:00:10]} 45. Bg3 {[%emt 0:00:04]} Nb2 {[%emt 0:00:10]} 46. Bh2 {[%emt 0:00:10]} Nc4+ {[%emt 0:00:04]} 47. Ka4 {[%emt 0:00:01]} b5+ {[%emt 0:00:05]} 48. Kb3 {[%emt 0:00:07]} Kd5 {[%emt 0:00:01]} 49. Kc3 {[%emt 0:00:13]} Nxe5 {[%emt 0:00:05]} 50. Bg1 {[%emt 0:00:04]} Ke4 {[%emt 0:00:16]} 51. Ba7 {[%emt 0:00:11]} Nc6 {[%emt 0:00:09]} 52. Bc5 {[%emt 0:00:07]} e5 {[%emt 0:00:04]} 53. Kd2 {[%emt 0:00:08]} Kf3 {[%emt 0:00:17]} 54. Kd3 {[%emt 0:00:08]} e4+ {[%emt 0:00:02]} 55. Kd2 {[%emt 0:00:00]} Ne5 {[%emt 0:00:19]} 56. Ke1 {[%emt 0:00:47]} e3 {[%emt 0:00:08]} 0-1